[Event "*** SCC Grand Prix: Titled Tuesday Blitz"]
[Site "Chess.com"]
[Date "2020.06.09"]
[Round "5"]
[White "Micki-taryan"]
[Black "Lubov_Gordyk"]
[Result "1-0"]
[WhiteElo "3010"]
[BlackElo "2625"]
[TimeControl "180+1"]
[EndTime "9:55:54 PDT"]
[Termination "Micki-taryan won by resignation"]

1. b3 {[%clk 0:03:00.5]} 1... e5 {[%clk 0:02:59.4]} 2. Bb2 {[%clk 0:03:00.4]}
2... Nc6 {[%clk 0:02:57.4]} 3. e3 {[%clk 0:03:00]} 3... Nf6 {[%clk 0:02:56.7]}
4. Nf3 {[%clk 0:02:59.2]} 4... e4 {[%clk 0:02:53.6]} 5. Nd4 {[%clk 0:02:59.4]}
5... Bc5 {[%clk 0:02:42.1]} 6. Nxc6 {[%clk 0:02:52.6]} 6... dxc6 {[%clk
0:02:39.8]} 7. Be2 {[%clk 0:02:52.5]} 7... h5 {[%clk 0:02:35.8]} 8. h3 {[%clk
0:02:51.5]} 8... Qd5 {[%clk 0:02:24.2]} 9. Bxf6 {[%clk 0:02:43.4]} 9... gxf6
{[%clk 0:02:22]} 10. Nc3 {[%clk 0:02:43.3]} 10... Qe5 {[%clk 0:02:19]} 11. Rc1
{[%clk 0:02:27.3]} 11... Bb4 {[%clk 0:02:13.8]} 12. Nb1 {[%clk 0:02:15.8]} 12...
Be6 {[%clk 0:02:11.1]} 13. a3 {[%clk 0:02:14.1]} 13... Be7 {[%clk 0:02:07.6]}
14. d4 {[%clk 0:02:14]} 14... exd3 {[%clk 0:02:01.3]} 15. cxd3 {[%clk
0:02:14.4]} 15... O-O-O {[%clk 0:01:57.9]} 16. b4 {[%clk 0:02:14.2]} 16... h4
{[%clk 0:01:45.7]} 17. Nc3 {[%clk 0:02:12.8]} 17... f5 {[%clk 0:01:40.7]} 18. d4
{[%clk 0:02:12.8]} 18... Qg7 {[%clk 0:01:38.1]} 19. Bf3 {[%clk 0:02:12.7]} 19...
f4 {[%clk 0:01:34.5]} 20. Qa4 {[%clk 0:02:10.3]} 20... fxe3 {[%clk 0:01:25.7]}
21. fxe3 {[%clk 0:02:11.2]} 21... Bg5 {[%clk 0:01:21.2]} 22. Nd1 {[%clk
0:01:10.9]} 22... Bxe3 {[%clk 0:01:00.3]} 23. Nxe3 {[%clk 0:01:08.7]} 23... Qxd4
{[%clk 0:00:59.9]} 24. Kf2 {[%clk 0:00:56.5]} 24... Qd2+ {[%clk 0:00:53.1]} 25.
Be2 {[%clk 0:00:56.5]} 25... Rh6 {[%clk 0:00:39.2]} 26. Qxa7 {[%clk 0:00:49.8]}
26... Rf6+ {[%clk 0:00:37.6]} 27. Kg1 {[%clk 0:00:50.2]} 27... Qxe2 {[%clk
0:00:34.2]} 28. Kh2 {[%clk 0:00:50.7]} 28... Qf2 {[%clk 0:00:28]} 29. Rhd1
{[%clk 0:00:42]} 29... Rd2 {[%clk 0:00:19.6]} 30. Rxd2 {[%clk 0:00:40.2]} 30...
Qxd2 {[%clk 0:00:19.1]} 31. Qa8+ {[%clk 0:00:40.7]} 31... Kd7 {[%clk 0:00:18.5]}
32. Rd1 {[%clk 0:00:41.6]} 1-0

[Event "*** SCC Grand Prix: Titled Tuesday Blitz"]
[Site "Chess.com"]
[Date "2020.06.09"]
[Round "5"]
[White "TigranMukhutdinov"]
[Black "WildTricks"]
[Result "1-0"]
[WhiteElo "2481"]
[BlackElo "2504"]
[TimeControl "180+1"]
[EndTime "9:55:54 PDT"]
[Termination "TigranMukhutdinov won by resignation"]

1. Nf3 {[%clk 0:03:00.9]} 1... g6 {[%clk 0:02:59.3]} 2. g3 {[%clk 0:03:00.8]}
2... Bg7 {[%clk 0:03:00.2]} 3. d4 {[%clk 0:03:01.4]} 3... f5 {[%clk 0:02:59.8]}
4. Bg2 {[%clk 0:03:01.5]} 4... Nf6 {[%clk 0:03:00.4]} 5. O-O {[%clk 0:03:02]}
5... O-O {[%clk 0:03:01.1]} 6. c4 {[%clk 0:03:02.6]} 6... d6 {[%clk 0:03:01.3]}
7. Nc3 {[%clk 0:03:03]} 7... Qe8 {[%clk 0:03:01.9]} 8. d5 {[%clk 0:03:03.4]}
8... Na6 {[%clk 0:03:01.1]} 9. a3 {[%clk 0:02:57.9]} 9... Bd7 {[%clk 0:02:58.9]}
10. Nd4 {[%clk 0:02:57.1]} 10... c6 {[%clk 0:02:51.1]} 11. b4 {[%clk 0:02:52.6]}
11... Rc8 {[%clk 0:02:47.1]} 12. dxc6 {[%clk 0:02:50.7]} 12... bxc6 {[%clk
0:02:46.3]} 13. Bb2 {[%clk 0:02:44.4]} 13... c5 {[%clk 0:02:37.2]} 14. Nc2
{[%clk 0:02:20.6]} 14... Qf7 {[%clk 0:02:27.1]} 15. b5 {[%clk 0:02:18.9]} 15...
Nc7 {[%clk 0:02:21.4]} 16. Ne3 {[%clk 0:02:18.9]} 16... f4 {[%clk 0:02:17.3]}
17. gxf4 {[%clk 0:02:16.7]} 17... Nh5 {[%clk 0:02:16.9]} 18. Ned5 {[%clk
0:02:15.1]} 18... Nxd5 {[%clk 0:02:14.5]} 19. Bxd5 {[%clk 0:02:14.4]} 19... e6
{[%clk 0:02:12.4]} 20. Bf3 {[%clk 0:02:14.6]} 20... Nxf4 {[%clk 0:02:10.8]} 21.
Qxd6 {[%clk 0:02:13.9]} 21... Bd4 {[%clk 0:01:39.8]} 22. Rad1 {[%clk 0:02:08.4]}
22... Rcd8 {[%clk 0:01:33.2]} 23. Rxd4 {[%clk 0:01:52.2]} 23... cxd4 {[%clk
0:01:29.6]} 24. Qxd4 {[%clk 0:01:49.2]} 24... Bxb5 {[%clk 0:01:18]} 25. Nd5
{[%clk 0:01:48.6]} 25... Qd7 {[%clk 0:00:35.2]} 26. Qh8+ {[%clk 0:01:40.3]}
26... Kf7 {[%clk 0:00:34.6]} 27. Qxh7+ {[%clk 0:01:40.8]} 27... Ke8 {[%clk
0:00:31.9]} 28. Nc7+ {[%clk 0:01:38.1]} 28... Qxc7 {[%clk 0:00:31.4]} 29. Qxc7
{[%clk 0:01:39]} 29... Bd7 {[%clk 0:00:27.5]} 30. Bg7 {[%clk 0:01:35.2]} 30...
Rf7 {[%clk 0:00:26.9]} 31. Rd1 {[%clk 0:01:29.7]} 31... Rxg7 {[%clk 0:00:16.4]}
32. Qxf4 {[%clk 0:01:28.7]} 32... Rf7 {[%clk 0:00:13.6]} 33. Qe5 {[%clk
0:01:27.9]} 33... Rf5 {[%clk 0:00:12.7]} 34. Qh8+ {[%clk 0:01:27.3]} 34... Ke7
{[%clk 0:00:12.7]} 35. Qh7+ {[%clk 0:01:26.5]} 35... Rf7 {[%clk 0:00:12.9]} 36.
Qh4+ {[%clk 0:01:26.5]} 36... Ke8 {[%clk 0:00:12.3]} 37. Bc6 {[%clk 0:01:25.8]}
37... g5 {[%clk 0:00:10.2]} 38. Qh8+ {[%clk 0:01:22.5]} 38... Ke7 {[%clk
0:00:09.9]} 39. Rxd7+ {[%clk 0:01:21.3]} 39... Rxd7 {[%clk 0:00:09.7]} 40. Bxd7
{[%clk 0:01:21.6]} 40... Kxd7 {[%clk 0:00:10.6]} 41. Qa8 {[%clk 0:01:21.3]}
41... Kd6 {[%clk 0:00:10.8]} 42. Qb8+ {[%clk 0:01:21.2]} 42... Kc5 {[%clk
0:00:10.5]} 43. Qe5+ {[%clk 0:01:20.8]} 43... Kc6 {[%clk 0:00:10.5]} 44. Qxe6+
{[%clk 0:01:21]} 1-0

[Event "*** SCC Grand Prix: Titled Tuesday Blitz"]
[Site "Chess.com"]
[Date "2020.06.09"]
[Round "5"]
[White "LyonBeast"]
[Black "Biranidun"]
[Result "1-0"]
[WhiteElo "2962"]
[BlackElo "2733"]
[TimeControl "180+1"]
[EndTime "9:56:00 PDT"]
[Termination "LyonBeast won by resignation"]

1. Nf3 {[%clk 0:03:00.9]} 1... Nf6 {[%clk 0:03:00]} 2. c4 {[%clk 0:02:57.2]}
2... g6 {[%clk 0:03:00.1]} 3. g3 {[%clk 0:02:56.7]} 3... Bg7 {[%clk 0:02:59.9]}
4. Bg2 {[%clk 0:02:57.1]} 4... O-O {[%clk 0:02:59.6]} 5. O-O {[%clk 0:02:57.4]}
5... d6 {[%clk 0:02:55.3]} 6. d4 {[%clk 0:02:56]} 6... Nbd7 {[%clk 0:02:54.9]}
7. b3 {[%clk 0:02:54]} 7... e5 {[%clk 0:02:53.1]} 8. e3 {[%clk 0:02:52.1]} 8...
Re8 {[%clk 0:02:48.4]} 9. Nc3 {[%clk 0:02:50.3]} 9... c6 {[%clk 0:02:45.5]} 10.
Ba3 {[%clk 0:02:41.6]} 10... e4 {[%clk 0:02:41.7]} 11. Nd2 {[%clk 0:02:41.3]}
11... d5 {[%clk 0:02:41.9]} 12. Rc1 {[%clk 0:02:37.4]} 12... a6 {[%clk
0:02:39.2]} 13. f3 {[%clk 0:02:30.5]} 13... Bh6 {[%clk 0:02:11.2]} 14. f4 {[%clk
0:02:15.5]} 14... Nf8 {[%clk 0:02:08.3]} 15. h3 {[%clk 0:02:11]} 15... Bg7
{[%clk 0:02:03.7]} 16. Kh2 {[%clk 0:02:06.5]} 16... h5 {[%clk 0:02:03.6]} 17.
Qe2 {[%clk 0:02:02.1]} 17... Bf5 {[%clk 0:02:01.6]} 18. cxd5 {[%clk 0:01:59.6]}
18... cxd5 {[%clk 0:02:01.6]} 19. Na4 {[%clk 0:02:00.2]} 19... Ne6 {[%clk
0:02:01.7]} 20. Nc5 {[%clk 0:01:53.4]} 20... Nxc5 {[%clk 0:02:01.3]} 21. Bxc5
{[%clk 0:01:53.8]} 21... Qd7 {[%clk 0:02:00.8]} 22. Rc2 {[%clk 0:01:52.6]} 22...
Rac8 {[%clk 0:01:59.9]} 23. Rfc1 {[%clk 0:01:52.4]} 23... Rc6 {[%clk 0:01:58.4]}
24. Nb1 {[%clk 0:01:48.7]} 24... Rec8 {[%clk 0:01:58.1]} 25. Bb4 {[%clk
0:01:48]} 25... Bf8 {[%clk 0:01:51.5]} 26. Bxf8 {[%clk 0:01:46.9]} 26... Kxf8
{[%clk 0:01:52.4]} 27. Qd2 {[%clk 0:01:45.2]} 27... Ke8 {[%clk 0:01:39.3]} 28.
Nc3 {[%clk 0:01:41.9]} 28... Qc7 {[%clk 0:01:25.7]} 29. Bf1 {[%clk 0:01:41.9]}
29... Kd7 {[%clk 0:01:16.4]} 30. Be2 {[%clk 0:01:38.3]} 30... Be6 {[%clk
0:01:13.4]} 31. Bd1 {[%clk 0:01:36.6]} 31... b5 {[%clk 0:01:02.7]} 32. Nxb5
{[%clk 0:01:30.2]} 32... Qb6 {[%clk 0:00:36.4]} 33. Rxc6 {[%clk 0:01:29.6]}
33... Rxc6 {[%clk 0:00:37.3]} 34. Rxc6 {[%clk 0:01:29.3]} 34... Qxc6 {[%clk
0:00:38.2]} 35. Nc3 {[%clk 0:01:29.6]} 35... Ke8 {[%clk 0:00:28.6]} 36. Na4
{[%clk 0:01:28]} 36... Nd7 {[%clk 0:00:29]} 37. Be2 {[%clk 0:01:27.1]} 37... h4
{[%clk 0:00:19.1]} 38. gxh4 {[%clk 0:01:25.1]} 38... Kf8 {[%clk 0:00:18.5]} 39.
Qc3 {[%clk 0:01:22.9]} 39... Qd6 {[%clk 0:00:15.1]} 40. Nc5 {[%clk 0:01:22.5]}
40... Nf6 {[%clk 0:00:09.7]} 41. Qa5 {[%clk 0:01:10.4]} 41... Kg7 {[%clk
0:00:05.8]} 42. Qxa6 {[%clk 0:01:10.5]} 42... Qe7 {[%clk 0:00:06]} 43. Qb7
{[%clk 0:01:09.7]} 43... Qd8 {[%clk 0:00:05.8]} 44. Nxe6+ {[%clk 0:01:09.2]} 1-0

[Event "*** SCC Grand Prix: Titled Tuesday Blitz"]
[Site "Chess.com"]
[Date "2020.06.09"]
[Round "5"]
[White "picturesquecheck"]
[Black "JoachimMouhamad"]
[Result "0-1"]
[WhiteElo "2124"]
[BlackElo "2475"]
[TimeControl "180+1"]
[EndTime "9:56:03 PDT"]
[Termination "JoachimMouhamad won by resignation"]

1. e4 {[%clk 0:02:52.8]} 1... e5 {[%clk 0:02:56.3]} 2. Nf3 {[%clk 0:02:52.1]}
2... Nc6 {[%clk 0:02:55]} 3. Bb5 {[%clk 0:02:51.8]} 3... a6 {[%clk 0:02:54.7]}
4. Ba4 {[%clk 0:02:49.5]} 4... Nf6 {[%clk 0:02:53.6]} 5. O-O {[%clk 0:02:49]}
5... Be7 {[%clk 0:02:53.7]} 6. Re1 {[%clk 0:02:45.5]} 6... b5 {[%clk 0:02:53.3]}
7. Bb3 {[%clk 0:02:41.9]} 7... d6 {[%clk 0:02:51.7]} 8. c3 {[%clk 0:02:38.9]}
8... O-O {[%clk 0:02:48.8]} 9. h3 {[%clk 0:02:33.3]} 9... Nb8 {[%clk 0:02:47.8]}
10. d4 {[%clk 0:02:24.9]} 10... Nbd7 {[%clk 0:02:47]} 11. a4 {[%clk 0:02:24.4]}
11... Bb7 {[%clk 0:02:38.2]} 12. Nbd2 {[%clk 0:02:22.3]} 12... c5 {[%clk
0:02:33.3]} 13. d5 {[%clk 0:02:21.1]} 13... c4 {[%clk 0:02:32.4]} 14. Bc2 {[%clk
0:02:17.4]} 14... Nc5 {[%clk 0:02:32.3]} 15. axb5 {[%clk 0:02:17.1]} 15... axb5
{[%clk 0:02:31.6]} 16. Rxa8 {[%clk 0:02:18]} 16... Qxa8 {[%clk 0:02:29.5]} 17.
Nf1 {[%clk 0:02:18.9]} 17... Bc8 {[%clk 0:02:21.7]} 18. Ng3 {[%clk 0:02:10]}
18... Bd7 {[%clk 0:02:11.8]} 19. Be3 {[%clk 0:02:09.9]} 19... Rc8 {[%clk
0:02:07.8]} 20. Qa1 {[%clk 0:01:58.5]} 20... Na4 {[%clk 0:01:46.2]} 21. Nh4
{[%clk 0:01:45.1]} 21... g6 {[%clk 0:01:45.1]} 22. Nf3 {[%clk 0:01:40.3]} 22...
Be8 {[%clk 0:01:35.2]} 23. Nd2 {[%clk 0:01:37.9]} 23... Nd7 {[%clk 0:01:25.1]}
24. Ngf1 {[%clk 0:01:30.8]} 24... Ndc5 {[%clk 0:01:22.7]} 25. Bxc5 {[%clk
0:01:23.9]} 25... Nxc5 {[%clk 0:01:21.3]} 26. g3 {[%clk 0:01:22.8]} 26... Bd7
{[%clk 0:01:19.5]} 27. h4 {[%clk 0:01:21.3]} 27... f5 {[%clk 0:01:14.6]} 28.
exf5 {[%clk 0:01:19.4]} 28... Bxf5 {[%clk 0:01:10.3]} 29. Bxf5 {[%clk
0:01:00.9]} 29... gxf5 {[%clk 0:01:09.6]} 30. Ne3 {[%clk 0:01:00.7]} 30... Rf8
{[%clk 0:01:04.1]} 31. Qxa8 {[%clk 0:00:59.1]} 31... Rxa8 {[%clk 0:01:01.5]} 32.
Nxf5 {[%clk 0:01:00]} 32... Bf8 {[%clk 0:01:00.6]} 33. Ne4 {[%clk 0:01:00.2]}
33... Nd3 {[%clk 0:00:57.6]} 34. Re2 {[%clk 0:00:58.4]} 34... Ra6 {[%clk
0:00:51.2]} 35. h5 {[%clk 0:00:56.3]} 35... h6 {[%clk 0:00:45.8]} 36. Kg2 {[%clk
0:00:56.2]} 36... Kf7 {[%clk 0:00:45.8]} 37. Rd2 {[%clk 0:00:51.7]} 37... Ke8
{[%clk 0:00:40.3]} 38. f3 {[%clk 0:00:45.2]} 38... Kd7 {[%clk 0:00:35.4]} 39.
Nf2 {[%clk 0:00:45.1]} 39... Ne1+ {[%clk 0:00:33]} 40. Kh3 {[%clk 0:00:38.9]}
40... Nxf3 {[%clk 0:00:33.2]} 41. Re2 {[%clk 0:00:36.8]} 41... Ng1+ {[%clk
0:00:33.1]} 0-1

[Event "*** SCC Grand Prix: Titled Tuesday Blitz"]
[Site "Chess.com"]
[Date "2020.06.09"]
[Round "5"]
[White "Rish_97"]
[Black "ajian"]
[Result "1-0"]
[WhiteElo "2690"]
[BlackElo "2450"]
[TimeControl "180+1"]
[EndTime "9:56:06 PDT"]
[Termination "Rish_97 won by resignation"]

1. e4 {[%clk 0:03:00.2]} 1... c5 {[%clk 0:02:59.7]} 2. Nf3 {[%clk 0:03:00]} 2...
Nc6 {[%clk 0:03:00.1]} 3. d4 {[%clk 0:02:56.7]} 3... cxd4 {[%clk 0:03:00.1]} 4.
Nxd4 {[%clk 0:02:57.6]} 4... Nf6 {[%clk 0:03:00.6]} 5. Nc3 {[%clk 0:02:57.8]}
5... e5 {[%clk 0:03:00.9]} 6. Ndb5 {[%clk 0:02:57.9]} 6... d6 {[%clk 0:03:01.3]}
7. Nd5 {[%clk 0:02:58.5]} 7... Nxd5 {[%clk 0:03:00.6]} 8. exd5 {[%clk
0:02:59.4]} 8... Nb8 {[%clk 0:03:01.2]} 9. Be2 {[%clk 0:02:59.4]} 9... Be7
{[%clk 0:03:01.1]} 10. a4 {[%clk 0:02:59.2]} 10... O-O {[%clk 0:03:00.1]} 11.
O-O {[%clk 0:02:59.7]} 11... a6 {[%clk 0:02:58.9]} 12. Na3 {[%clk 0:02:59.1]}
12... f5 {[%clk 0:02:59.1]} 13. f4 {[%clk 0:02:52.1]} 13... Nd7 {[%clk
0:02:59.2]} 14. Nc4 {[%clk 0:02:49.5]} 14... Nb6 {[%clk 0:02:53.6]} 15. fxe5
{[%clk 0:02:43]} 15... dxe5 {[%clk 0:02:26.7]} 16. Nxe5 {[%clk 0:02:40.5]} 16...
Qxd5 {[%clk 0:02:06.6]} 17. Bc4 {[%clk 0:02:30]} 17... Bc5+ {[%clk 0:01:49.1]}
18. Kh1 {[%clk 0:02:29.1]} 18... Be6 {[%clk 0:01:34.7]} 19. Bxd5 {[%clk
0:02:26.2]} 19... Nxd5 {[%clk 0:01:29.6]} 20. Nd7 {[%clk 0:02:17.1]} 20... Rfc8
{[%clk 0:01:17.9]} 21. Nxc5 {[%clk 0:01:38.1]} 21... Rxc5 {[%clk 0:01:18.8]} 22.
c3 {[%clk 0:01:38.8]} 22... h6 {[%clk 0:01:13.4]} 23. Qd4 {[%clk 0:01:37.5]}
23... Rac8 {[%clk 0:01:12.6]} 24. Bd2 {[%clk 0:01:36.9]} 24... Rc4 {[%clk
0:01:11.7]} 25. Qd3 {[%clk 0:01:33.9]} 25... Nf6 {[%clk 0:00:59.7]} 26. Rae1
{[%clk 0:01:32.3]} 26... Ne4 {[%clk 0:00:59.6]} 27. a5 {[%clk 0:01:25.1]} 27...
R8c7 {[%clk 0:00:59]} 28. Be3 {[%clk 0:01:24.6]} 28... Rd7 {[%clk 0:00:57.1]}
29. Bd4 {[%clk 0:01:24.8]} 29... Rc8 {[%clk 0:00:49.8]} 30. Qf3 {[%clk
0:01:17.8]} 30... Nd2 {[%clk 0:00:40.5]} 31. Qe3 {[%clk 0:01:09.4]} 31... Ne4
{[%clk 0:00:39.5]} 32. Rf4 {[%clk 0:01:03.4]} 32... Bd5 {[%clk 0:00:38]} 33.
Rxf5 {[%clk 0:01:01.4]} 33... Re8 {[%clk 0:00:37.7]} 34. Re5 {[%clk 0:00:59.7]}
34... Rxe5 {[%clk 0:00:28.6]} 35. Bxe5 {[%clk 0:01:00.6]} 35... Rf7 {[%clk
0:00:29.5]} 36. h3 {[%clk 0:00:54.3]} 36... Rf2 {[%clk 0:00:25.3]} 37. Qd4
{[%clk 0:00:48.4]} 1-0

[Event "*** SCC Grand Prix: Titled Tuesday Blitz"]
[Site "Chess.com"]
[Date "2020.06.09"]
[Round "5"]
[White "Xeniya2005"]
[Black "Maksimus1998"]
[Result "1-0"]
[WhiteElo "2317"]
[BlackElo "2508"]
[TimeControl "180+1"]
[EndTime "9:56:07 PDT"]
[Termination "Xeniya2005 won by resignation"]

1. e4 {[%clk 0:03:00.9]} 1... d5 {[%clk 0:02:56.7]} 2. exd5 {[%clk 0:02:58.6]}
2... Nf6 {[%clk 0:02:57.3]} 3. d4 {[%clk 0:02:57.6]} 3... Nxd5 {[%clk 0:02:56]}
4. c4 {[%clk 0:02:57.1]} 4... Nb6 {[%clk 0:02:53.7]} 5. Nc3 {[%clk 0:02:56.3]}
5... c6 {[%clk 0:02:51.4]} 6. Be3 {[%clk 0:02:49.3]} 6... Bf5 {[%clk 0:02:50.8]}
7. Rc1 {[%clk 0:02:47.6]} 7... e6 {[%clk 0:02:50.4]} 8. Bd3 {[%clk 0:02:45.2]}
8... Bxd3 {[%clk 0:02:48.3]} 9. Qxd3 {[%clk 0:02:43.3]} 9... Be7 {[%clk
0:02:48.3]} 10. Nge2 {[%clk 0:02:41]} 10... O-O {[%clk 0:02:48.2]} 11. O-O
{[%clk 0:02:39.3]} 11... N8d7 {[%clk 0:02:45.3]} 12. b3 {[%clk 0:02:38.6]} 12...
Nf6 {[%clk 0:02:44]} 13. Rcd1 {[%clk 0:02:34.7]} 13... h6 {[%clk 0:02:43.8]} 14.
h3 {[%clk 0:02:32.6]} 14... Re8 {[%clk 0:02:38.6]} 15. Rfe1 {[%clk 0:02:28.8]}
15... Bb4 {[%clk 0:02:34.2]} 16. Qc2 {[%clk 0:02:24.9]} 16... a5 {[%clk
0:02:20.5]} 17. Rd3 {[%clk 0:01:48.8]} 17... a4 {[%clk 0:02:15.2]} 18. Red1
{[%clk 0:01:46.8]} 18... axb3 {[%clk 0:02:12.7]} 19. axb3 {[%clk 0:01:44.5]}
19... Qc7 {[%clk 0:01:55.4]} 20. Bf4 {[%clk 0:01:31.8]} 20... Qe7 {[%clk
0:01:54.9]} 21. Ng3 {[%clk 0:01:14.4]} 21... Ra3 {[%clk 0:01:48.4]} 22. Nce4
{[%clk 0:01:00.8]} 22... Nxe4 {[%clk 0:01:47.5]} 23. Nxe4 {[%clk 0:01:01.7]}
23... Rea8 {[%clk 0:01:43.9]} 24. Rg3 {[%clk 0:00:59.8]} 24... Kh8 {[%clk
0:01:38.3]} 25. Be5 {[%clk 0:00:50.6]} 25... Rg8 {[%clk 0:01:14.7]} 26. Qc1
{[%clk 0:00:43.1]} 26... Kh7 {[%clk 0:01:14.6]} 27. Rxg7+ {[%clk 0:00:16.1]}
27... Rxg7 {[%clk 0:01:08.5]} 28. Nf6+ {[%clk 0:00:14.2]} 28... Qxf6 {[%clk
0:00:49.5]} 29. Bxf6 {[%clk 0:00:13.8]} 29... Rg6 {[%clk 0:00:50.4]} 30. Be5
{[%clk 0:00:12.9]} 30... Nd7 {[%clk 0:00:50.8]} 31. Qf4 {[%clk 0:00:12.3]} 31...
f6 {[%clk 0:00:49.2]} 32. Bd6 {[%clk 0:00:12.2]} 32... Rxb3 {[%clk 0:00:42.7]}
33. Bxb4 {[%clk 0:00:11.7]} 33... Rxb4 {[%clk 0:00:43.6]} 34. Qd6 {[%clk
0:00:11.5]} 1-0

[Event "*** SCC Grand Prix: Titled Tuesday Blitz"]
[Site "Chess.com"]
[Date "2020.06.09"]
[Round "5"]
[White "tan275"]
[Black "Irishchessman16"]
[Result "0-1"]
[WhiteElo "2190"]
[BlackElo "2459"]
[TimeControl "180+1"]
[EndTime "9:56:07 PDT"]
[Termination "Irishchessman16 won by checkmate"]

1. d4 {[%clk 0:03:00.9]} 1... f5 {[%clk 0:02:59.1]} 2. Nf3 {[%clk 0:02:59.8]}
2... Nf6 {[%clk 0:02:58.9]} 3. g3 {[%clk 0:03:00.3]} 3... g6 {[%clk 0:02:59]} 4.
Bg2 {[%clk 0:03:00.3]} 4... Bg7 {[%clk 0:02:59.9]} 5. O-O {[%clk 0:03:00.2]}
5... O-O {[%clk 0:03:00.5]} 6. b3 {[%clk 0:03:00.4]} 6... d6 {[%clk 0:03:01.1]}
7. Bb2 {[%clk 0:03:00.5]} 7... c6 {[%clk 0:03:00.7]} 8. Nbd2 {[%clk 0:02:57.5]}
8... Qc7 {[%clk 0:02:57.6]} 9. a4 {[%clk 0:02:56.1]} 9... Na6 {[%clk 0:02:45.7]}
10. Nc4 {[%clk 0:02:53.8]} 10... Ne4 {[%clk 0:02:44]} 11. Nfd2 {[%clk
0:02:46.7]} 11... d5 {[%clk 0:02:42]} 12. Ne5 {[%clk 0:02:44.8]} 12... Nd6
{[%clk 0:02:38.8]} 13. Ndf3 {[%clk 0:02:29.8]} 13... f4 {[%clk 0:02:38.5]} 14.
c4 {[%clk 0:02:28.5]} 14... dxc4 {[%clk 0:02:28.9]} 15. bxc4 {[%clk 0:02:24]}
15... Kh8 {[%clk 0:02:29]} 16. Ng5 {[%clk 0:02:18]} 16... Bf5 {[%clk 0:02:03.7]}
17. c5 {[%clk 0:02:15.3]} 17... Ne8 {[%clk 0:02:00.9]} 18. gxf4 {[%clk
0:01:52.7]} 18... h6 {[%clk 0:01:59.2]} 19. Ngf7+ {[%clk 0:01:42.9]} 19... Kg8
{[%clk 0:01:58.8]} 20. e4 {[%clk 0:01:35.9]} 20... Be6 {[%clk 0:01:56.3]} 21.
Nxh6+ {[%clk 0:01:29]} 21... Bxh6 {[%clk 0:01:53.3]} 22. Nxg6 {[%clk 0:01:29.4]}
22... Rxf4 {[%clk 0:01:49]} 23. Nxf4 {[%clk 0:01:23.1]} 23... Qxf4 {[%clk
0:01:42.4]} 24. d5 {[%clk 0:01:20.4]} 24... Bg4 {[%clk 0:01:35.6]} 25. f3 {[%clk
0:01:12.2]} 25... Bh5 {[%clk 0:01:32.2]} 26. Kh1 {[%clk 0:01:02.1]} 26... Bg7
{[%clk 0:01:26.8]} 27. Bxg7 {[%clk 0:00:56.4]} 27... Nxg7 {[%clk 0:01:27.7]} 28.
Rg1 {[%clk 0:00:55]} 28... Rf8 {[%clk 0:01:23]} 29. d6 {[%clk 0:00:37]} 29...
Nxc5 {[%clk 0:01:08.5]} 30. dxe7 {[%clk 0:00:34.2]} 30... Re8 {[%clk 0:01:08.6]}
31. Qc1 {[%clk 0:00:18.7]} 31... Qxc1 {[%clk 0:01:03.4]} 32. Rgxc1 {[%clk
0:00:15.1]} 32... Nd3 {[%clk 0:01:01]} 33. Rc3 {[%clk 0:00:13]} 33... Nf4 {[%clk
0:00:58.5]} 34. Rb1 {[%clk 0:00:07.6]} 34... Rxe7 {[%clk 0:00:57.7]} 35. Rc5
{[%clk 0:00:06.2]} 35... Nge6 {[%clk 0:00:55.4]} 36. Re5 {[%clk 0:00:05]} 36...
Rg7 {[%clk 0:00:55.1]} 37. Bf1 {[%clk 0:00:03.3]} 37... Bxf3+ {[%clk 0:00:54.4]}
38. Bg2 {[%clk 0:00:02.8]} 38... Bxg2+ {[%clk 0:00:54.7]} 39. Kg1 {[%clk
0:00:02.9]} 39... Nh3# {[%clk 0:00:55.6]} 0-1

[Event "*** SCC Grand Prix: Titled Tuesday Blitz"]
[Site "Chess.com"]
[Date "2020.06.09"]
[Round "5"]
[White "AlexOstrovskiy"]
[Black "awesomevishesh"]
[Result "1-0"]
[WhiteElo "2587"]
[BlackElo "2417"]
[TimeControl "180+1"]
[EndTime "9:56:08 PDT"]
[Termination "AlexOstrovskiy won by resignation"]

1. d4 {[%clk 0:03:00.9]} 1... Nf6 {[%clk 0:02:59.6]} 2. Bf4 {[%clk 0:02:58.9]}
2... d5 {[%clk 0:02:55.8]} 3. e3 {[%clk 0:02:56.5]} 3... e6 {[%clk 0:02:53.9]}
4. Nd2 {[%clk 0:02:56.3]} 4... c5 {[%clk 0:02:53.3]} 5. c3 {[%clk 0:02:55.3]}
5... Bd6 {[%clk 0:02:53]} 6. Bb5+ {[%clk 0:02:53.7]} 6... Nc6 {[%clk 0:02:47.7]}
7. Bg3 {[%clk 0:02:52.7]} 7... O-O {[%clk 0:02:37.9]} 8. Ngf3 {[%clk 0:02:47.9]}
8... Qc7 {[%clk 0:02:11.6]} 9. dxc5 {[%clk 0:02:46.9]} 9... Bxg3 {[%clk
0:02:08.8]} 10. hxg3 {[%clk 0:02:47.8]} 10... Ne7 {[%clk 0:01:49.9]} 11. b4
{[%clk 0:02:09.3]} 11... b6 {[%clk 0:01:33.9]} 12. Nb3 {[%clk 0:02:01.8]} 12...
e5 {[%clk 0:01:31.6]} 13. Rc1 {[%clk 0:01:51.1]} 13... Bg4 {[%clk 0:01:29.8]}
14. Be2 {[%clk 0:01:47.7]} 14... Rfd8 {[%clk 0:01:25.5]} 15. O-O {[%clk
0:01:38.1]} 15... Nf5 {[%clk 0:01:10]} 16. a4 {[%clk 0:01:32.4]} 16... Ne4
{[%clk 0:00:59.6]} 17. Nfd2 {[%clk 0:01:25.5]} 17... Bxe2 {[%clk 0:00:51.8]} 18.
Qxe2 {[%clk 0:01:26.4]} 18... Nxd2 {[%clk 0:00:27.9]} 19. Qxd2 {[%clk
0:01:27.3]} 19... h5 {[%clk 0:00:22.3]} 20. Rfd1 {[%clk 0:01:24.5]} 20... g6
{[%clk 0:00:20.8]} 21. Qe2 {[%clk 0:01:23.4]} 21... Kg7 {[%clk 0:00:17.5]} 22.
a5 {[%clk 0:01:21.7]} 22... bxa5 {[%clk 0:00:07.1]} 23. Nxa5 {[%clk 0:01:22.6]}
23... Rab8 {[%clk 0:00:03.8]} 24. e4 {[%clk 0:01:21.9]} 24... dxe4 {[%clk
0:00:03.4]} 25. Qxe4 {[%clk 0:01:22.8]} 25... Rxd1+ {[%clk 0:00:03.5]} 26. Rxd1
{[%clk 0:01:23.1]} 26... f6 {[%clk 0:00:02.8]} 27. Qc6 {[%clk 0:01:20.1]} 27...
Qxc6 {[%clk 0:00:01.5]} 28. Nxc6 {[%clk 0:01:21]} 28... Rb7 {[%clk 0:00:01.9]}
29. Nd8 {[%clk 0:01:15.5]} 29... Re7 {[%clk 0:00:01.6]} 30. b5 {[%clk
0:01:10.5]} 30... e4 {[%clk 0:00:01.5]} 31. b6 {[%clk 0:01:06.9]} 31... axb6
{[%clk 0:00:01.7]} 32. cxb6 {[%clk 0:01:07.8]} 32... e3 {[%clk 0:00:02]} 33.
fxe3 {[%clk 0:01:08.7]} 33... Nxe3 {[%clk 0:00:02]} 34. Re1 {[%clk 0:01:07.6]}
34... Rd7 {[%clk 0:00:01.1]} 35. Ne6+ {[%clk 0:01:06.8]} 35... Kf7 {[%clk
0:00:01.7]} 36. Rxe3 {[%clk 0:01:07.7]} 36... Re7 {[%clk 0:00:01.3]} 37. Nd8+
{[%clk 0:01:07.7]} 37... Ke8 {[%clk 0:00:01]} 38. Rxe7+ {[%clk 0:01:08.6]} 38...
Kxe7 {[%clk 0:00:01.9]} 39. b7 {[%clk 0:01:09.5]} 39... Kxd8 {[%clk 0:00:02.5]}
40. b8=Q+ {[%clk 0:01:10.4]} 40... Kd7 {[%clk 0:00:03.4]} 41. c4 {[%clk
0:01:10.7]} 1-0